[Event "Early-Titled-Tuesday-Blitz-January-30-2024"]
[Site "Chess.com"]
[Date "2024.01.30"]
[Round "3"]
[White "VomDingJetztHer"]
[Black "YouJustFoundYourGodfather"]
[Result "1-0"]
[WhiteElo "2428"]
[BlackElo "2583"]
[TimeControl "180+1"]
[EndTime "8:30:26 PST"]
[Termination "VomDingJetztHer won by checkmate"]

1. Nf3 {[%clk 0:02:59.2]} 1... f5 {[%clk 0:02:53.1]} 2. d3 {[%clk 0:02:56.2]}
2... Nf6 {[%clk 0:02:53.7]} 3. Nbd2 {[%clk 0:02:51.8]} 3... g6 {[%clk
0:02:53.1]} 4. e4 {[%clk 0:02:51.6]} 4... d6 {[%clk 0:02:52.8]} 5. Be2 {[%clk
0:02:51.1]} 5... Bg7 {[%clk 0:02:52.8]} 6. O-O {[%clk 0:02:51.3]} 6... O-O
{[%clk 0:02:53.6]} 7. c3 {[%clk 0:02:51.6]} 7... c5 {[%clk 0:02:54]} 8. Re1
{[%clk 0:02:51.8]} 8... Nc6 {[%clk 0:02:53.8]} 9. Qc2 {[%clk 0:02:51.4]} 9... e5
{[%clk 0:02:53.2]} 10. Nf1 {[%clk 0:02:46.7]} 10... h6 {[%clk 0:02:44.4]} 11. h3
{[%clk 0:02:46.3]} 11... g5 {[%clk 0:02:42.9]} 12. exf5 {[%clk 0:02:45.9]} 12...
Bxf5 {[%clk 0:02:42.7]} 13. Ng3 {[%clk 0:02:46.3]} 13... Bg6 {[%clk 0:02:40.8]}
14. Ne4 {[%clk 0:02:43.6]} 14... Kh8 {[%clk 0:02:30.4]} 15. Nh2 {[%clk
0:02:41.1]} 15... Nd5 {[%clk 0:02:25.9]} 16. Ng4 {[%clk 0:02:26.6]} 16... Nf4
{[%clk 0:02:23.3]} 17. Bf1 {[%clk 0:02:23.8]} 17... Qd7 {[%clk 0:02:19.2]} 18.
g3 {[%clk 0:02:21]} 18... Ne6 {[%clk 0:02:01.4]} 19. Be3 {[%clk 0:02:10]} 19...
b6 {[%clk 0:01:54.4]} 20. Nd2 {[%clk 0:01:33.5]} 20... Ncd4 {[%clk 0:01:53.6]}
21. cxd4 {[%clk 0:01:29.9]} 21... cxd4 {[%clk 0:01:54.5]} 22. Bg2 {[%clk
0:01:26.2]} 22... Rac8 {[%clk 0:01:53.9]} 23. Qb3 {[%clk 0:01:25]} 23... Nc5
{[%clk 0:01:51]} 24. Qd5 {[%clk 0:01:18.6]} 24... dxe3 {[%clk 0:01:33.7]} 25.
Nc4 {[%clk 0:01:12.2]} 25... Nxd3 {[%clk 0:01:13.2]} 26. Rxe3 {[%clk 0:00:58.9]}
26... Nb4 {[%clk 0:00:21.1]} 27. Qxd6 {[%clk 0:00:56.7]} 27... Qxd6 {[%clk
0:00:18.7]} 28. Nxd6 {[%clk 0:00:57.6]} 28... Rcd8 {[%clk 0:00:19]} 29. Rd1
{[%clk 0:00:51]} 29... Nc2 {[%clk 0:00:18.8]} 30. Nxe5 {[%clk 0:00:37.8]} 30...
Bh5 {[%clk 0:00:14.8]} 31. Ndf7+ {[%clk 0:00:29.2]} 31... Bxf7 {[%clk
0:00:06.5]} 32. Nxf7+ {[%clk 0:00:28.8]} 32... Kh7 {[%clk 0:00:07.2]} 33. Nxd8
{[%clk 0:00:24.7]} 33... Nxe3 {[%clk 0:00:05]} 34. fxe3 {[%clk 0:00:25.6]} 34...
Bxb2 {[%clk 0:00:05.2]} 35. Rd7+ {[%clk 0:00:24]} 35... Kg6 {[%clk 0:00:02]} 36.
Be4+ {[%clk 0:00:22.4]} 36... Kh5 {[%clk 0:00:02.6]} 37. Ne6 {[%clk 0:00:18.8]}
37... Rf6 {[%clk 0:00:02.1]} 38. Ng7# {[%clk 0:00:18.6]} 1-0

[Event "Early-Titled-Tuesday-Blitz-January-30-2024"]
[Site "Chess.com"]
[Date "2024.01.30"]
[Round "3"]
[White "Shield12"]
[Black "Alexchess1984"]
[Result "1-0"]
[WhiteElo "3012"]
[BlackElo "2740"]
[TimeControl "180+1"]
[EndTime "8:30:28 PST"]
[Termination "Shield12 won by resignation"]

1. e4 {[%clk 0:03:00.9]} 1... c5 {[%clk 0:02:59.2]} 2. Nf3 {[%clk 0:03:00.9]}
2... Nc6 {[%clk 0:02:59.3]} 3. Bb5 {[%clk 0:03:00.7]} 3... Nf6 {[%clk
0:02:58.7]} 4. Nc3 {[%clk 0:03:00.3]} 4... Qc7 {[%clk 0:02:57.7]} 5. O-O {[%clk
0:02:59.2]} 5... Nd4 {[%clk 0:02:57.4]} 6. Re1 {[%clk 0:02:58.9]} 6... a6 {[%clk
0:02:57.6]} 7. Bf1 {[%clk 0:02:58.3]} 7... d6 {[%clk 0:02:57.1]} 8. Nxd4 {[%clk
0:02:55.9]} 8... cxd4 {[%clk 0:02:57.3]} 9. Nd5 {[%clk 0:02:56.8]} 9... Nxd5
{[%clk 0:02:57.5]} 10. exd5 {[%clk 0:02:57.7]} 10... g6 {[%clk 0:02:54.4]} 11.
d3 {[%clk 0:02:47]} 11... Bg7 {[%clk 0:02:54.1]} 12. Bg5 {[%clk 0:02:46.6]}
12... e5 {[%clk 0:02:52.1]} 13. dxe6 {[%clk 0:02:46.3]} 13... Bxe6 {[%clk
0:02:51.6]} 14. Be2 {[%clk 0:02:36.9]} 14... O-O {[%clk 0:02:51]} 15. Bf3 {[%clk
0:02:37.2]} 15... Rac8 {[%clk 0:02:51.5]} 16. Re2 {[%clk 0:02:37.7]} 16... b5
{[%clk 0:02:49.1]} 17. Qd2 {[%clk 0:02:37.7]} 17... a5 {[%clk 0:02:46.1]} 18.
Bh6 {[%clk 0:02:36.1]} 18... b4 {[%clk 0:02:42.1]} 19. Bxg7 {[%clk 0:02:35.9]}
19... Kxg7 {[%clk 0:02:41.9]} 20. a3 {[%clk 0:02:36.8]} 20... Qc5 {[%clk
0:02:35]} 21. h4 {[%clk 0:02:36.6]} 21... h6 {[%clk 0:02:30.5]} 22. axb4 {[%clk
0:02:32.6]} 22... axb4 {[%clk 0:02:24.6]} 23. Ra4 {[%clk 0:02:25.6]} 23... Rb8
{[%clk 0:02:15.1]} 24. Qf4 {[%clk 0:02:21.6]} 24... Rfc8 {[%clk 0:02:02.1]} 25.
Ra6 {[%clk 0:02:18.9]} 25... b3 {[%clk 0:01:43.7]} 26. cxb3 {[%clk 0:02:12]}
26... Qc1+ {[%clk 0:01:43]} 27. Qxc1 {[%clk 0:02:11]} 27... Rxc1+ {[%clk
0:01:43.9]} 28. Kh2 {[%clk 0:02:11.9]} 28... Rxb3 {[%clk 0:01:44.5]} 29. Rd2
{[%clk 0:01:55.8]} 29... Rb1 {[%clk 0:01:27]} 30. Rxd6 {[%clk 0:01:48.3]} 30...
R1xb2 {[%clk 0:01:23.9]} 31. Rxb2 {[%clk 0:01:49.2]} 31... Rxb2 {[%clk
0:01:24.8]} 32. Kg3 {[%clk 0:01:48.8]} 32... Rb4 {[%clk 0:01:23.2]} 33. Bd5
{[%clk 0:01:37.1]} 33... Bxd5 {[%clk 0:01:16.6]} 34. Rxd5 {[%clk 0:01:38]} 34...
Kf6 {[%clk 0:01:16.4]} 35. Kf4 {[%clk 0:01:37.8]} 35... Ke6 {[%clk 0:01:15.6]}
36. Re5+ {[%clk 0:01:32.4]} 36... Kf6 {[%clk 0:01:12.4]} 37. g4 {[%clk
0:01:27.1]} 37... Rb2 {[%clk 0:01:04.3]} 38. g5+ {[%clk 0:01:20.3]} 38... hxg5+
{[%clk 0:01:02.4]} 39. hxg5+ {[%clk 0:01:21.1]} 39... Kg7 {[%clk 0:01:03.3]} 40.
f3 {[%clk 0:01:20.5]} 40... Rd2 {[%clk 0:00:32.7]} 41. Ke4 {[%clk 0:01:18.4]}
41... Rf2 {[%clk 0:00:33.2]} 42. Rd5 {[%clk 0:01:16.3]} 42... f5+ {[%clk
0:00:28.4]} 43. Kf4 {[%clk 0:01:13.2]} 43... Kf7 {[%clk 0:00:20.2]} 44. Rxd4
{[%clk 0:01:12.7]} 44... Rh2 {[%clk 0:00:20]} 45. Rd7+ {[%clk 0:01:10.9]} 45...
Ke6 {[%clk 0:00:20.3]} 46. Rg7 {[%clk 0:01:10.5]} 46... Rh4+ {[%clk 0:00:20.4]}
47. Kg3 {[%clk 0:01:10.5]} 47... Rd4 {[%clk 0:00:19.8]} 48. Rxg6+ {[%clk
0:01:01.1]} 48... Ke5 {[%clk 0:00:19.9]} 49. Rg8 {[%clk 0:01:00.8]} 49... Rd6
{[%clk 0:00:12.2]} 50. Re8+ {[%clk 0:00:59]} 50... Kd4 {[%clk 0:00:12.3]} 51.
Kf4 {[%clk 0:00:59.2]} 51... Kxd3 {[%clk 0:00:12.5]} 52. Kxf5 {[%clk 0:00:58.9]}
1-0

[Event "Early-Titled-Tuesday-Blitz-January-30-2024"]
[Site "Chess.com"]
[Date "2024.01.30"]
[Round "3"]
[White "gahryman"]
[Black "WindWhistler11"]
[Result "1-0"]
[WhiteElo "2658"]
[BlackElo "2472"]
[TimeControl "180+1"]
[EndTime "8:30:28 PST"]
[Termination "gahryman won by resignation"]

1. e4 {[%clk 0:03:00.9]} 1... e6 {[%clk 0:02:59.2]} 2. d4 {[%clk 0:03:00.1]}
2... d5 {[%clk 0:02:59.8]} 3. e5 {[%clk 0:03:00.7]} 3... c5 {[%clk 0:02:59.8]}
4. Nf3 {[%clk 0:03:01.6]} 4... Nc6 {[%clk 0:03:00.4]} 5. Bd3 {[%clk 0:03:02.2]}
5... Bd7 {[%clk 0:03:01.1]} 6. O-O {[%clk 0:03:02.4]} 6... Nb4 {[%clk 0:02:59]}
7. Be2 {[%clk 0:03:00.3]} 7... cxd4 {[%clk 0:02:57.6]} 8. a3 {[%clk 0:02:51.5]}
8... Nc6 {[%clk 0:02:57]} 9. Bd3 {[%clk 0:02:51.8]} 9... Nge7 {[%clk 0:02:49.7]}
10. Nbd2 {[%clk 0:02:51.1]} 10... Ng6 {[%clk 0:02:42.5]} 11. Re1 {[%clk
0:02:50.8]} 11... Qc7 {[%clk 0:02:42.6]} 12. Bxg6 {[%clk 0:02:49.7]} 12... hxg6
{[%clk 0:02:37.5]} 13. Nb3 {[%clk 0:02:49.9]} 13... Be7 {[%clk 0:02:24.4]} 14.
Nbxd4 {[%clk 0:02:44.4]} 14... a6 {[%clk 0:02:24.4]} 15. c3 {[%clk 0:02:41.6]}
15... Rh5 {[%clk 0:02:18.1]} 16. Bf4 {[%clk 0:02:38.4]} 16... g5 {[%clk
0:02:05.9]} 17. Bg3 {[%clk 0:02:30.6]} 17... g6 {[%clk 0:01:57.1]} 18. h3 {[%clk
0:02:23.9]} 18... O-O-O {[%clk 0:01:51.8]} 19. Rc1 {[%clk 0:02:22.9]} 19... Na5
{[%clk 0:01:48.3]} 20. Nh2 {[%clk 0:02:21.2]} 20... Nc4 {[%clk 0:01:40]} 21. Qe2
{[%clk 0:02:19.3]} 21... Kb8 {[%clk 0:01:39.5]} 22. Ng4 {[%clk 0:02:18.8]} 22...
Rc8 {[%clk 0:01:37.1]} 23. a4 {[%clk 0:02:11]} 23... Bxa4 {[%clk 0:01:32.2]} 24.
b3 {[%clk 0:02:10.6]} 24... Bxb3 {[%clk 0:01:22.8]} 25. Nxb3 {[%clk 0:02:10.4]}
25... Rhh8 {[%clk 0:01:21.2]} 26. Nd4 {[%clk 0:02:08.7]} 26... Bc5 {[%clk
0:01:20.3]} 27. Rb1 {[%clk 0:02:08.1]} 27... Ka8 {[%clk 0:01:17.8]} 28. Nf6
{[%clk 0:02:07.9]} 28... Rb8 {[%clk 0:01:15.1]} 29. Ra1 {[%clk 0:02:05]} 29...
Rhc8 {[%clk 0:01:11.1]} 30. Reb1 {[%clk 0:02:03.6]} 30... Ba7 {[%clk 0:01:06.3]}
31. Qa2 {[%clk 0:01:52.1]} 31... Nb6 {[%clk 0:01:04]} 32. Nb5 {[%clk 0:01:47.7]}
32... Qc4 {[%clk 0:01:01.7]} 33. Nxa7 {[%clk 0:01:46.5]} 33... Kxa7 {[%clk
0:01:01.2]} 34. Qb2 {[%clk 0:01:17.3]} 34... Rc6 {[%clk 0:00:58.9]} 35. f3
{[%clk 0:01:08.8]} 35... Qxc3 {[%clk 0:00:49.6]} 36. Bf2 {[%clk 0:01:07.7]}
36... Qxb2 {[%clk 0:00:32.2]} 37. Rxb2 {[%clk 0:01:08.6]} 37... d4 {[%clk
0:00:30.5]} 38. Bxd4 {[%clk 0:01:07.7]} 38... Rbc8 {[%clk 0:00:29.5]} 39. Rxb6
{[%clk 0:01:04]} 39... Rxb6 {[%clk 0:00:30]} 40. Rb1 {[%clk 0:01:04.2]} 40...
Rc6 {[%clk 0:00:29.5]} 41. Rxb6 {[%clk 0:01:03.6]} 41... Rxb6 {[%clk 0:00:29.4]}
42. Nd7 {[%clk 0:01:04]} 42... a5 {[%clk 0:00:29.6]} 43. Bxb6+ {[%clk 0:01:04]}
43... Ka6 {[%clk 0:00:30.4]} 44. Be3 {[%clk 0:00:53]} 44... b5 {[%clk
0:00:28.6]} 45. Bxg5 {[%clk 0:00:50.7]} 45... b4 {[%clk 0:00:27.4]} 46. Be7
{[%clk 0:00:50.8]} 46... Kb5 {[%clk 0:00:27.5]} 47. Kf2 {[%clk 0:00:50]} 47...
Kc4 {[%clk 0:00:22.8]} 48. h4 {[%clk 0:00:44.2]} 48... Kd4 {[%clk 0:00:19.8]}
49. g4 {[%clk 0:00:43.1]} 49... b3 {[%clk 0:00:18.4]} 50. Ba3 {[%clk 0:00:42.3]}
50... Kc3 {[%clk 0:00:19.1]} 51. h5 {[%clk 0:00:42.4]} 51... gxh5 {[%clk
0:00:19.5]} 52. gxh5 {[%clk 0:00:42.8]} 52... b2 {[%clk 0:00:20]} 53. Bxb2+
{[%clk 0:00:42.5]} 53... Kxb2 {[%clk 0:00:20.9]} 54. Nc5 {[%clk 0:00:42.3]}
54... Kc3 {[%clk 0:00:21.5]} 55. h6 {[%clk 0:00:42.5]} 55... Kd4 {[%clk
0:00:22.1]} 56. Na4 {[%clk 0:00:42.2]} 56... Kxe5 {[%clk 0:00:22.6]} 57. h7
{[%clk 0:00:42.4]} 1-0

[Event "Early-Titled-Tuesday-Blitz-January-30-2024"]
[Site "Chess.com"]
[Date "2024.01.30"]
[Round "3"]
[White "Savagelittlemole"]
[Black "vladgoncharov"]
[Result "1/2-1/2"]
[WhiteElo "2474"]
[BlackElo "2632"]
[TimeControl "180+1"]
[EndTime "8:30:28 PST"]
[Termination "Game drawn by agreement"]

1. e4 {[%clk 0:03:00.9]} 1... e6 {[%clk 0:02:59.7]} 2. d4 {[%clk 0:03:00.5]}
2... d5 {[%clk 0:03:00.3]} 3. Nd2 {[%clk 0:03:00.9]} 3... c5 {[%clk 0:02:57.8]}
4. exd5 {[%clk 0:03:00.9]} 4... Qxd5 {[%clk 0:02:56.7]} 5. Ngf3 {[%clk
0:03:01.2]} 5... cxd4 {[%clk 0:02:55.6]} 6. Bc4 {[%clk 0:03:01.4]} 6... Qd8
{[%clk 0:02:50.5]} 7. O-O {[%clk 0:03:02]} 7... Nc6 {[%clk 0:02:49.6]} 8. Nb3
{[%clk 0:03:02.4]} 8... Nf6 {[%clk 0:02:49.1]} 9. Nbxd4 {[%clk 0:03:02.6]} 9...
Nxd4 {[%clk 0:02:49]} 10. Nxd4 {[%clk 0:03:03.5]} 10... Qc7 {[%clk 0:02:37.8]}
11. Qe2 {[%clk 0:02:53.4]} 11... a6 {[%clk 0:02:31.7]} 12. Bg5 {[%clk
0:02:44.4]} 12... Be7 {[%clk 0:02:29.5]} 13. Rfe1 {[%clk 0:02:35.6]} 13... Nd5
{[%clk 0:01:58.7]} 14. Bxd5 {[%clk 0:02:10.8]} 14... Bxg5 {[%clk 0:01:56.6]} 15.
Bxe6 {[%clk 0:02:08.4]} 15... O-O {[%clk 0:01:39.1]} 16. Bb3 {[%clk 0:01:54.3]}
16... b5 {[%clk 0:01:29.7]} 17. c3 {[%clk 0:01:48.2]} 17... Bb7 {[%clk
0:01:28.9]} 18. Qg4 {[%clk 0:01:45.3]} 18... Bf6 {[%clk 0:01:25]} 19. Nf5 {[%clk
0:01:28.2]} 19... Kh8 {[%clk 0:01:23]} 20. Ne3 {[%clk 0:01:21.9]} 20... Qc5
{[%clk 0:01:17.9]} 21. Rad1 {[%clk 0:01:16.8]} 21... Rad8 {[%clk 0:01:15.5]} 22.
Rxd8 {[%clk 0:01:14.6]} 22... Rxd8 {[%clk 0:01:14.4]} 23. Bxf7 {[%clk
0:01:10.1]} 23... a5 {[%clk 0:01:11.6]} 24. Qh3 {[%clk 0:01:01.9]} 24... b4
{[%clk 0:00:59.9]} 25. Bg6 {[%clk 0:00:49.1]} 25... h6 {[%clk 0:00:56.6]} 26.
Ng4 {[%clk 0:00:38.8]} 26... Bc8 {[%clk 0:00:43]} 27. Qf3 {[%clk 0:00:15.7]}
27... Bxg4 {[%clk 0:00:33.1]} 28. Qxg4 {[%clk 0:00:16.6]} 28... bxc3 {[%clk
0:00:33.1]} 29. bxc3 {[%clk 0:00:16.7]} 29... Qxc3 {[%clk 0:00:33.1]} 30. Rd1
{[%clk 0:00:15.6]} 30... Rxd1+ {[%clk 0:00:31.2]} 31. Qxd1 {[%clk 0:00:16.5]}
31... Qa1 {[%clk 0:00:31.1]} 32. Qxa1 {[%clk 0:00:16.4]} 32... Bxa1 {[%clk
0:00:29.9]} 33. f3 {[%clk 0:00:16.6]} 33... Kg8 {[%clk 0:00:30.5]} 34. Kf2
{[%clk 0:00:17]} 34... Kf8 {[%clk 0:00:31.2]} 35. Ke3 {[%clk 0:00:17.5]} 35...
Ke7 {[%clk 0:00:31.9]} 36. Kd3 {[%clk 0:00:16.8]} 36... Kf6 {[%clk 0:00:32]} 37.
Be8 {[%clk 0:00:16.3]} 37... Ke5 {[%clk 0:00:31.6]} 38. g3 {[%clk 0:00:16.1]}
38... g5 {[%clk 0:00:30.8]} 39. Bd7 {[%clk 0:00:15.5]} 39... Bb2 {[%clk
0:00:30.3]} 40. h4 {[%clk 0:00:14.2]} 40... Ba3 {[%clk 0:00:28.9]} 41. hxg5
{[%clk 0:00:13.4]} 41... hxg5 {[%clk 0:00:28.4]} 42. Bc6 {[%clk 0:00:13.7]}
42... Bb4 {[%clk 0:00:27.8]} 43. Ke3 {[%clk 0:00:13.2]} 43... Bc5+ {[%clk
0:00:27.2]} 44. Kd3 {[%clk 0:00:13.9]} 44... Bf2 {[%clk 0:00:26.8]} 45. g4
{[%clk 0:00:14.2]} 45... Kf4 {[%clk 0:00:26.3]} 46. Kc4 {[%clk 0:00:14.1]} 46...
Be1 {[%clk 0:00:26.1]} 47. a4 {[%clk 0:00:14.1]} 47... Bd2 {[%clk 0:00:24.5]}
1/2-1/2

[Event "Early-Titled-Tuesday-Blitz-January-30-2024"]
[Site "Chess.com"]
[Date "2024.01.30"]
[Round "3"]
[White "BJthechessgod"]
[Black "Manukyan_Artak"]
[Result "0-1"]
[WhiteElo "2414"]
[BlackElo "2606"]
[TimeControl "180+1"]
[EndTime "8:30:28 PST"]
[Termination "Manukyan_Artak won by checkmate"]

1. e4 {[%clk 0:02:55.6]} 1... c6 {[%clk 0:02:59.8]} 2. d4 {[%clk 0:02:55.1]}
2... d5 {[%clk 0:03:00.7]} 3. e5 {[%clk 0:02:55.6]} 3... Bf5 {[%clk 0:03:00.4]}
4. h4 {[%clk 0:02:55.5]} 4... h5 {[%clk 0:03:00.1]} 5. Bd3 {[%clk 0:02:55.1]}
5... Bxd3 {[%clk 0:02:59.9]} 6. Qxd3 {[%clk 0:02:56]} 6... e6 {[%clk 0:03:00.5]}
7. Bg5 {[%clk 0:02:52.8]} 7... Qb6 {[%clk 0:02:59.7]} 8. Nd2 {[%clk 0:02:52.4]}
8... Qa6 {[%clk 0:02:57.2]} 9. c4 {[%clk 0:02:52]} 9... Bb4 {[%clk 0:02:57.2]}
10. b3 {[%clk 0:02:50.9]} 10... Nh6 {[%clk 0:02:56.6]} 11. Nf3 {[%clk
0:02:48.6]} 11... Nf5 {[%clk 0:02:56]} 12. O-O {[%clk 0:02:49.2]} 12... Nd7
{[%clk 0:02:54.2]} 13. Rfd1 {[%clk 0:02:42.3]} 13... O-O {[%clk 0:02:49.4]} 14.
a3 {[%clk 0:02:40.9]} 14... Bxd2 {[%clk 0:02:49.1]} 15. Nxd2 {[%clk 0:02:41.8]}
15... dxc4 {[%clk 0:02:29.7]} 16. Nxc4 {[%clk 0:02:37.1]} 16... Nb6 {[%clk
0:02:17.4]} 17. Qc2 {[%clk 0:02:04.7]} 17... Nd5 {[%clk 0:01:55.9]} 18. a4
{[%clk 0:01:53.4]} 18... b5 {[%clk 0:01:34.3]} 19. axb5 {[%clk 0:01:49.3]} 19...
Qxb5 {[%clk 0:01:35.2]} 20. Ra5 {[%clk 0:01:48.9]} 20... Qb4 {[%clk 0:01:31.2]}
21. Bd2 {[%clk 0:01:13.9]} 21... Qe7 {[%clk 0:01:23.3]} 22. Bg5 {[%clk
0:01:13.9]} 22... Qb4 {[%clk 0:01:23.3]} 23. Bd2 {[%clk 0:01:08.2]} 23... Qb7
{[%clk 0:01:23.8]} 24. Bg5 {[%clk 0:01:05.1]} 24... Rfb8 {[%clk 0:01:15.3]} 25.
Rc5 {[%clk 0:00:56.7]} 25... Qxb3 {[%clk 0:01:08.8]} 26. Qxb3 {[%clk 0:00:56.3]}
26... Rxb3 {[%clk 0:01:09.7]} 27. Rxc6 {[%clk 0:00:57]} 27... a5 {[%clk
0:01:03.3]} 28. Ra1 {[%clk 0:00:27.6]} 28... a4 {[%clk 0:00:55.2]} 29. Nd6
{[%clk 0:00:25.3]} 29... Nxd4 {[%clk 0:00:49.7]} 30. Rc8+ {[%clk 0:00:20.7]}
30... Rxc8 {[%clk 0:00:48.7]} 31. Nxc8 {[%clk 0:00:21.6]} 31... a3 {[%clk
0:00:48.8]} 32. Ne7+ {[%clk 0:00:21.4]} 32... Kh7 {[%clk 0:00:43.5]} 33. Nxd5
{[%clk 0:00:21.7]} 33... exd5 {[%clk 0:00:44.3]} 34. Be7 {[%clk 0:00:21.2]}
34... Nc2 {[%clk 0:00:37.6]} 35. Ra2 {[%clk 0:00:21.6]} 35... Rb2 {[%clk
0:00:36.8]} 36. Rxa3 {[%clk 0:00:19.9]} 36... Nxa3 {[%clk 0:00:35.4]} 37. Bxa3
{[%clk 0:00:20.8]} 37... Re2 {[%clk 0:00:33.5]} 38. Bd6 {[%clk 0:00:16.7]} 38...
d4 {[%clk 0:00:33.7]} 39. Kf1 {[%clk 0:00:17.2]} 39... d3 {[%clk 0:00:33.4]} 40.
f3 {[%clk 0:00:16.4]} 40... Kg6 {[%clk 0:00:29.8]} 41. g4 {[%clk 0:00:16.1]}
41... hxg4 {[%clk 0:00:29.5]} 42. fxg4 {[%clk 0:00:17]} 42... Re4 {[%clk
0:00:28.6]} 43. h5+ {[%clk 0:00:14.7]} 43... Kg5 {[%clk 0:00:26]} 44. Bf8 {[%clk
0:00:15]} 44... d2 {[%clk 0:00:22.9]} 45. Bxg7 {[%clk 0:00:13.8]} 45... d1=Q+
{[%clk 0:00:22]} 46. Kf2 {[%clk 0:00:14.7]} 46... Qe2+ {[%clk 0:00:21.6]} 47.
Kg3 {[%clk 0:00:15.2]} 47... Rxg4+ {[%clk 0:00:22.1]} 48. Kh3 {[%clk 0:00:15.5]}
48... Qg2# {[%clk 0:00:23]} 0-1

[Event "Early-Titled-Tuesday-Blitz-January-30-2024"]
[Site "Chess.com"]
[Date "2024.01.30"]
[Round "3"]
[White "tetrix83"]
[Black "HanSchut"]
[Result "1-0"]
[WhiteElo "2566"]
[BlackElo "2269"]
[TimeControl "180+1"]
[EndTime "8:30:29 PST"]
[Termination "tetrix83 won on time"]

1. e4 {[%clk 0:03:00.9]} 1... c5 {[%clk 0:02:57.2]} 2. Nf3 {[%clk 0:03:00.3]}
2... d6 {[%clk 0:02:57.7]} 3. Bb5+ {[%clk 0:02:58.5]} 3... Bd7 {[%clk
0:02:57.4]} 4. Bxd7+ {[%clk 0:02:57.6]} 4... Qxd7 {[%clk 0:02:58.3]} 5. O-O
{[%clk 0:02:57.5]} 5... Nf6 {[%clk 0:02:56.8]} 6. e5 {[%clk 0:02:55.1]} 6...
dxe5 {[%clk 0:02:51.9]} 7. Nxe5 {[%clk 0:02:56]} 7... Qc7 {[%clk 0:02:48.3]} 8.
d4 {[%clk 0:02:55.4]} 8... Nc6 {[%clk 0:02:47.2]} 9. Nxc6 {[%clk 0:02:47.2]}
9... Qxc6 {[%clk 0:02:46.8]} 10. dxc5 {[%clk 0:02:46.4]} 10... Rd8 {[%clk
0:02:37.8]} 11. Qe2 {[%clk 0:02:40.9]} 11... Qxc5 {[%clk 0:02:37.9]} 12. Be3
{[%clk 0:02:40.4]} 12... Qa5 {[%clk 0:02:15]} 13. Nd2 {[%clk 0:02:35]} 13... e6
{[%clk 0:02:03]} 14. Nb3 {[%clk 0:02:21.6]} 14... Qc7 {[%clk 0:01:59]} 15. a4
{[%clk 0:02:15.1]} 15... Nd5 {[%clk 0:01:44.4]} 16. Bd4 {[%clk 0:02:07.6]} 16...
Bd6 {[%clk 0:01:31.9]} 17. g3 {[%clk 0:01:58.5]} 17... O-O {[%clk 0:01:31.6]}
18. a5 {[%clk 0:01:56.4]} 18... Rc8 {[%clk 0:01:09.2]} 19. Rfc1 {[%clk 0:01:48]}
19... b6 {[%clk 0:01:09.3]} 20. axb6 {[%clk 0:01:39.1]} 20... axb6 {[%clk
0:01:10.2]} 21. c4 {[%clk 0:01:38.1]} 21... Ne7 {[%clk 0:00:57.2]} 22. Ra6
{[%clk 0:01:31]} 22... Rb8 {[%clk 0:00:55.4]} 23. Rca1 {[%clk 0:01:14.1]} 23...
Nc6 {[%clk 0:00:43.9]} 24. Bc3 {[%clk 0:01:11.1]} 24... Bb4 {[%clk 0:00:42.8]}
25. Bxb4 {[%clk 0:01:06.8]} 25... Nxb4 {[%clk 0:00:43.7]} 26. Ra7 {[%clk
0:01:06]} 26... Rb7 {[%clk 0:00:43.4]} 27. Rxb7 {[%clk 0:01:04.3]} 27... Qxb7
{[%clk 0:00:44.3]} 28. Nd4 {[%clk 0:01:03.3]} 28... Rd8 {[%clk 0:00:38.6]} 29.
Nb5 {[%clk 0:01:01.1]} 29... Qc6 {[%clk 0:00:32.7]} 30. h4 {[%clk 0:00:59.7]}
30... h6 {[%clk 0:00:28.9]} 31. b3 {[%clk 0:00:55.1]} 31... Qc5 {[%clk
0:00:21.9]} 32. Rd1 {[%clk 0:00:52.4]} 32... Rxd1+ {[%clk 0:00:18.1]} 33. Qxd1
{[%clk 0:00:53.3]} 33... Nc6 {[%clk 0:00:18.2]} 34. Qd3 {[%clk 0:00:47.4]} 34...
e5 {[%clk 0:00:17.4]} 35. Qd5 {[%clk 0:00:45.7]} 35... Nd4 {[%clk 0:00:15.1]}
36. Nc3 {[%clk 0:00:34.7]} 36... Nxb3 {[%clk 0:00:10.6]} 37. Qa8+ {[%clk
0:00:23]} 37... Kh7 {[%clk 0:00:10.5]} 38. Qe4+ {[%clk 0:00:22.5]} 38... g6
{[%clk 0:00:11]} 39. h5 {[%clk 0:00:21.7]} 39... Qd4 {[%clk 0:00:10.9]} 40.
hxg6+ {[%clk 0:00:21.2]} 40... fxg6 {[%clk 0:00:11.8]} 41. Qb7+ {[%clk
0:00:20.1]} 41... Kh8 {[%clk 0:00:12.1]} 42. Ne4 {[%clk 0:00:19.1]} 1-0